bitfinex/quotes_SOLUSD_20250425
["timestamp","ask_amount","ask_price","bid_price","bid_amount"]
[1745548624247,11.21215831,151.55,151.5,6.60066006]
[1745548624248,11.14915831,151.53,151.5,6.60066006]
[1745548625548,8.79042289,151.54,151.5,6.60066006]
[1745548626349,8.79042289,151.54,151.5,13.73758295]
[1745548626751,8.79042289,151.54,151.5,6.60066006]
[1745548626926,7.13692289,151.51,151.48,6.60153155]
[1745548627262,7.13692289,151.5,151.48,6.60153155]
[1745548627540,7.13692289,151.5,151.46,6.60240327]
[1745548628052,7.13692289,151.49,151.46,6.60240327]
[1745548628456,7.13692289,151.5,151.46,6.60240327]
[1745548629130,13.78,151.52,151.49,7.13692289]
[1745548629326,0.063,151.55,151.51,7.13692289]
[1745548629558,0.063,151.55,151.52,7.13692289]
[1745548629733,7.19992289,151.55,151.5,7.13692289]
[1745548630235,7.13692289,151.54,151.5,7.13692289]
[1745548630634,7.19992289,151.55,151.5,7.13692289]
[1745548630841,7.19992289,151.55,151.51,7.13692289]
[1745548631041,7.19992289,151.55,151.5,7.13692289]
[1745548631240,0.063,151.55,151.5,7.13692289]
[1745548631542,7.13692289,151.54,151.51,6.6002244]
[1745548631936,7.13692289,151.52,151.46,6.60240327]
[1745548632250,7.13692289,151.5,151.46,6.60240327]
[1745548632836,7.13692289,151.5,151.46,13.73932616]
[1745548633244,7.13692289,151.49,151.45,30.24596269]
[1745548633738,7.13692289,151.5,151.45,30.24596269]
[1745548633940,5.03857309,151.5,151.45,30.24596269]
[1745548634253,14.79002289,151.51,151.46,7.13692289]
[1745548634632,7.13692289,151.49,151.45,23.1090398]
[1745548634932,7.13692289,151.5,151.45,30.24596269]
[1745548635360,11.15717041,151.49,151.45,23.1090398]
[1745548635531,11.15717041,151.48,151.45,6.60283922]
[1745548637053,11.15717041,151.47,151.44,6.60324169]
[1745548637235,11.15717041,151.48,151.44,11.15717041]
[1745548637439,11.15717041,151.48,151.45,6.60283922]
[1745548639446,11.15717041,151.48,151.44,6.60327522]
[1745548639758,11.15717041,151.47,151.44,6.60327522]
[1745548639940,11.15717041,151.46,151.43,0.03]
[1745548640144,11.15717041,151.45,151.43,0.03]
[1745548640954,11.15717041,151.45,151.43,6.63366589]
[1745548641170,11.15717041,151.45,151.43,0.03]
[1745548642056,11.15717041,151.46,151.43,0.03]
[1745548643655,11.15717041,151.45,151.43,0.03]
[1745548643955,11.15717041,151.46,151.43,0.03]
[1745548644464,11.15717041,151.44,151.43,0.03]
[1745548647168,82.7,151.46,151.43,11.18717041]
[1745548647373,82.7,151.46,151.43,0.03]
[1745548647749,82.7,151.46,151.43,6.63371128]
[1745548647964,93.85717041,151.46,151.43,6.63371128]
[1745548649156,82.7,151.46,151.43,6.63371128]
[1745548649667,93.85717041,151.46,151.43,6.63371128]
[1745548649851,93.85717041,151.46,151.43,0.03]
[1745548650368,11.15717041,151.46,151.43,0.03]
[1745548652674,13.78,151.47,151.43,0.03]
[1745548652879,24.93717041,151.47,151.43,0.03]
[1745548653844,13.78,151.47,151.43,0.03]
[1745548654045,24.93717041,151.47,151.43,0.03]
[1745548654351,13.78,151.47,151.45,6.60283922]
[1745548654569,11.15717041,151.48,151.45,6.60283922]
[1745548654872,11.15717041,151.47,151.45,6.60283922]
[1745548655241,7.14273999,151.47,151.45,6.60283922]
[1745548656583,7.14273999,151.47,151.43,6.63371128]
[1745548656771,89.84273999,151.49,151.44,7.14273999]
[1745548657679,7.14273999,151.48,151.43,30.28572948]
[1745548657850,7.14273999,151.47,151.43,23.14298949]
[1745548658273,7.14273999,151.46,151.43,23.14298949]
[1745548658581,7.14273999,151.46,151.43,16.53927821]
[1745548659054,7.14273999,151.47,151.43,16.53927821]
[1745548659257,7.14273999,151.47,151.43,23.6820182]
[1745548660683,7.14273999,151.48,151.43,30.28572948]
[1745548660975,82.7,151.49,151.45,7.14273999]
[1745548661663,7.14273999,151.5,151.45,7.14273999]
[1745548661865,19.8534,151.51,151.46,7.14273999]
[1745548662170,1.6277,151.55,151.5,7.14273999]
[1745548662171,7.14273999,151.54,151.5,7.14273999]
[1745548662477,7.14273999,151.53,151.48,7.14273999]
[1745548662680,7.14273999,151.52,151.49,6.60109578]
[1745548662974,7.14273999,151.53,151.49,6.60109578]
[1745548663276,15.4077,151.55,151.49,6.60109578]
[1745548663277,7.14273999,151.52,151.49,6.60109578]
[1745548663471,7.14273999,151.51,151.49,6.60109578]
[1745548664183,7.14273999,151.52,151.49,6.60109578]
[1745548664477,7.14273999,151.51,151.48,6.60139313]
[1745548664779,7.14273999,151.51,151.46,30.25043381]
[1745548665149,7.14273999,151.5,151.46,30.25043381]
[1745548665376,7.14273999,151.5,151.46,23.10769382]
[1745548665655,7.14273999,151.5,151.46,30.25043381]
[1745548666155,7.14273999,151.51,151.46,30.25043381]
[1745548667373,7.14273999,151.51,151.46,23.10769382]
[1745548667580,7.14273999,151.49,151.46,6.60240327]
[1745548668079,7.14273999,151.5,151.46,13.74514326]
[1745548669080,7.14273999,151.51,151.47,7.14273999]
[1745548669272,7.14273999,151.52,151.47,7.14273999]
[1745548669476,7.14273999,151.52,151.48,6.60153155]
[1745548669673,7.14273999,151.51,151.48,6.60153155]
[1745548671213,7.14273999,151.52,151.48,6.60153155]
[1745548671371,89.84273999,151.53,151.48,13.74427154]
[1745548671578,89.84273999,151.53,151.49,7.14273999]
[1745548671894,89.84273999,151.53,151.48,30.24810042]
[1745548672400,7.14273999,151.5,151.48,6.60153155]
[1745548672780,7.14273999,151.51,151.48,6.60153155]
[1745548673584,7.14273999,151.51,151.47,6.60196738]
[1745548674592,7.14273999,151.51,151.47,6.60196738]
[1745548680568,7.14273999,151.49,151.47,6.60196738]
[1745548681792,96.48,151.53,151.46,6.60240327]
[1745548681793,7.14273999,151.5,151.46,6.60240327]
[1745548683588,96.48,151.53,151.46,13.74514326]
[1745548683902,7.14273999,151.51,151.46,13.74514326]
[1745548684510,7.14273999,151.5,151.46,6.60240327]
[1745548684691,7.14273999,151.49,151.46,6.60240327]
[1745548685006,7.14273999,151.5,151.46,6.60240327]
[1745548685306,7.14273999,151.51,151.46,13.74514326]
[1745548685804,0.14216157,151.54,151.49,7.14273999]
[1745548686000,0.063,151.55,151.54,26.0]
[1745548686185,0.063,151.55,151.54,44.93402524]
[1745548686503,0.063,151.55,151.54,63.0745227]
[1745548686696,0.063,151.55,151.54,69.67344047]
[1745548687989,1e-08,151.55,151.54,69.67344047]
[1745548688303,1e-08,151.55,151.54,71.50344047]
[1745548689197,1e-08,151.55,151.54,51.53294301]
[1745548690309,1e-08,151.55,151.54,62.85207082]
[1745548694812,1e-08,151.55,151.54,29.70933083]
[1745548694989,1e-08,151.55,151.54,6.59891777]
[1745548695191,1e-08,151.55,151.54,13.74165776]
[1745548698209,1e-08,151.55,151.54,6.59891777]
[1745548699416,1e-08,151.55,151.54,7.14273999]
[1745548699818,1e-08,151.55,151.53,13.74209325]
[1745548700110,1e-08,151.55,151.53,6.59935326]
[1745548702326,1e-08,151.55,151.53,13.74209325]
[1745548702925,1e-08,151.55,151.54,7.14273999]
[1745548705621,1e-08,151.55,151.54,13.74165776]
[1745548709720,1e-08,151.55,151.53,6.59935326]
[1745548709916,1e-08,151.55,151.54,7.14273999]
[1745548710924,7.14274,151.55,151.53,6.59935326]
[1745548711106,7.14273999,151.54,151.53,6.59935326]
[1745548711425,7.14273999,151.54,151.5,6.60066006]
[1745548711802,7.14273999,151.52,151.5,6.60066006]
[1745548713528,7.14273999,151.53,151.5,6.60066006]
[1745548714935,7.14273999,151.51,151.49,6.60109578]
[1745548715102,7.14273999,151.5,151.49,6.60109578]
[1745548715830,82.7,151.52,151.49,6.60109578]
[1745548716125,7.14273999,151.5,151.46,6.60240327]
[1745548719338,7.14273999,151.5,151.46,13.74514326]
[1745548721429,7.14273999,151.5,151.46,30.25115144]
[1745548723025,7.14273999,151.5,151.46,23.10841145]
[1745548724409,7.14273999,151.47,151.44,6.60327522]
[1745548724614,7.14273999,151.45,151.44,6.60327522]
[1745548725013,7.14273999,151.46,151.44,6.60327522]
[1745548725230,7.14273999,151.46,151.43,0.03]
[1745548725739,7.14273999,151.47,151.43,0.03]
[1745548726035,19.8108,151.48,151.44,7.14273999]
[1745548726405,26.95353999,151.48,151.44,7.14273999]
[1745548726614,26.95353999,151.48,151.43,7.17273999]
[1745548726615,7.14273999,151.47,151.43,7.17273999]
[1745548727132,26.95353999,151.48,151.44,6.60327522]
[1745548727634,7.14273999,151.47,151.44,6.60327522]
[1745548734146,26.95353999,151.48,151.44,6.60327522]
[1745548734515,7.14273999,151.47,151.44,6.60327522]
[1745548735246,19.8108,151.48,151.44,6.60327522]
[1745548735414,7.14273999,151.47,151.44,6.60327522]
[1745548741948,96.48,151.51,151.44,23.11146328]
[1745548742152,13.78,151.51,151.47,7.14273999]
[1745548742322,13.19813999,151.52,151.47,7.14273999]
[1745548743226,13.19813999,151.52,151.48,7.14273999]
[1745548743822,13.76000001,151.55,151.5,7.14273999]
[1745548743823,20.90274,151.55,151.5,7.14273999]
[1745548744829,7.14273999,151.52,151.49,6.60109578]
[1745548745034,7.14273999,151.52,151.46,18.16804258]
[1745548745035,7.14273999,151.5,151.47,6.60154581]
[1745548745236,7.14273999,151.49,151.47,6.60154581]
[1745548745628,7.14273999,151.5,151.47,6.60154581]
[1745548745950,7.14273999,151.51,151.46,13.74514326]
[1745548746546,7.14273999,151.5,151.46,6.60240327]
[1745548747445,7.14273999,151.49,151.46,6.60240327]
[1745548747836,7.14273999,151.49,151.45,23.10973214]
[1745548748346,7.14273999,151.48,151.45,6.60283922]
[1745548749537,7.14273999,151.49,151.45,6.60283922]
[1745548751850,7.14273999,151.48,151.45,6.60283922]
[1745548752041,7.14273999,151.48,151.44,23.11120003]
[1745548753448,7.14273999,151.49,151.44,30.25394002]
[1745548754249,7.14273999,151.5,151.45,7.14273999]
[1745548754443,7.14273999,151.49,151.44,43.04049393]
[1745548754648,7.14273999,151.48,151.44,50.18323392]
[1745548754822,7.14273999,151.49,151.44,50.18323392]
[1745548755228,7.14273999,151.49,151.46,6.60240327]
[1745548755429,7.14273999,151.5,151.46,30.25115144]
[1745548757552,7.14273999,151.5,151.46,23.10841145]
[1745548759753,20.90273999,151.51,151.46,30.25115144]
[1745548760138,7.14273999,151.47,151.46,6.60240327]
[1745548761364,7.14273999,151.48,151.44,6.60327522]
[1745548762846,7.14273999,151.49,151.44,13.74601521]
[1745548763049,7.14273999,151.49,151.44,30.25420327]
[1745548763243,7.14273999,151.51,151.46,7.14273999]
[1745548763451,7.14273999,151.51,151.47,6.60196738]
[1745548763952,7.14273999,151.49,151.47,6.60196738]
[1745548764263,7.14273999,151.48,151.45,6.60283922]
[1745548765159,7.14273999,151.51,151.46,7.14273999]
[1745548765547,7.14273999,151.51,151.47,6.60196738]
[1745548766865,7.14273999,151.5,151.47,6.60196738]
[1745548767040,7.14273999,151.51,151.47,6.60196738]
[1745548768665,8.1585,151.52,151.47,6.60196738]
[1745548768868,7.14273999,151.51,151.47,6.60196738]
[1745548772377,7.14273999,151.5,151.47,6.60196738]
[1745548773366,7.14273999,151.49,151.47,6.60196738]
[1745548773877,7.14273999,151.49,151.45,23.10993727]
[1745548775173,7.14273999,151.5,151.45,23.64983804]
[1745548775388,7.14273999,151.51,151.47,7.14273999]
[1745548775672,7.14273999,151.51,151.46,7.14273999]
[1745548775875,90.8585,151.52,151.46,7.14273999]
[1745548775876,7.14273999,151.5,151.46,7.14273999]
[1745548776681,90.8585,151.52,151.46,7.14273999]
[1745548776871,90.8585,151.52,151.47,7.14273999]
[1745548777184,7.14273999,151.51,151.46,7.14273999]
[1745548777678,7.14273999,151.5,151.46,7.14273999]
[1745548778872,90.8585,151.52,151.46,7.14273999]
[1745548779068,96.38573999,151.52,151.47,7.14273999]
[1745548779268,7.14273999,151.51,151.48,6.60153155]
[1745548780267,96.46,151.54,151.48,30.24810042]
[1745548780268,7.14273999,151.53,151.48,30.24810042]
[1745548780471,20.90273999,151.54,151.49,7.14273999]
[1745548780781,13.76,151.54,151.5,7.14273999]
[1745548780966,1e-08,151.55,151.53,7.14273999]
[1745548781478,1e-08,151.55,151.54,6.59891777]
[1745548782577,7.14274,151.55,151.52,6.5997888]
[1745548783261,7.14273999,151.53,151.5,6.60066006]
[1745548783466,7.14273999,151.52,151.5,6.60066006]
[1745548783656,7.14273999,151.51,151.5,6.60066006]
[1745548783856,7.14273999,151.52,151.5,6.60066006]
[1745548784260,6.0333,151.54,151.5,13.74340005]
[1745548784463,89.84274,151.55,151.5,13.74340005]
[1745548784756,7.14273999,151.54,151.5,13.74340005]
[1745548784976,7.14273999,151.54,151.5,6.60066006]
[1745548786172,7.14273999,151.53,151.5,6.60066006]
[1745548791384,7.14273999,151.53,151.5,6.60066006]
[1745548791881,7.14273999,151.54,151.5,6.60066006]
[1745548792281,7.14273999,151.54,151.5,23.10231022]
[1745548794591,7.14273999,151.53,151.5,6.60066006]
[1745548794768,7.14273999,151.51,151.48,6.60153155]
[1745548795086,7.14273999,151.5,151.48,6.60153155]
[1745548795778,6.64273999,151.5,151.48,6.60153155]
[1745548796595,6.64273999,151.5,151.47,6.60196738]
[1745548797201,7.14273999,151.48,151.46,6.60235698]
[1745548797408,7.14273999,151.47,151.44,6.60327522]
[1745548797572,7.14273999,151.46,151.44,6.60327522]
[1745548798501,7.14273999,151.45,151.44,6.60327522]
[1745548798699,7.14273999,151.45,151.43,0.03]
[1745548799499,13.76,151.49,151.43,0.03]
[1745548799500,7.14273999,151.44,151.43,0.03]
[1745548801482,1.5868,151.48,151.43,0.03]
[1745548801675,7.14273999,151.48,151.43,7.17273999]
[1745548801882,103.60273999,151.49,151.45,7.14273999]
[1745548802181,103.60273999,151.49,151.46,7.14273999]
[1745548802182,13.76,151.49,151.46,7.14273999]
[1745548802487,20.90273999,151.49,151.45,7.14273999]
[1745548802887,20.90273999,151.49,151.46,6.60240327]
[1745548803086,13.76,151.49,151.46,13.74514326]
[1745548803288,13.76,151.49,151.46,30.25115144]
[1745548803878,7.14273999,151.5,151.46,30.25115144]
[1745548804199,7.14273999,151.51,151.46,30.25115144]
[1745548804903,7.14273999,151.52,151.48,13.74427154]
[1745548805082,103.60273999,151.53,151.48,13.74427154]
[1745548805909,7.14273999,151.52,151.48,6.60153155]
[1745548806384,7.14273999,151.51,151.48,6.60153155]
[1745548807608,7.14273999,151.52,151.48,6.60153155]
[1745548809183,103.60273999,151.53,151.48,13.74427154]
[1745548809483,103.60273999,151.53,151.49,7.14273999]
[1745548809782,13.76,151.53,151.5,13.74340005]
[1745548811207,7.14273999,151.52,151.5,6.60066006]
[1745548812282,20.90273999,151.53,151.5,6.60066006]
[1745548812480,13.76,151.53,151.5,6.60066006]
[1745548812699,1e-08,151.55,151.51,7.14273999]
[1745548812905,7.14274,151.55,151.5,13.74340005]
[1745548813210,1e-08,151.55,151.51,7.14273999]
[1745548813510,1e-08,151.55,151.54,7.14273999]
[1745548814191,7.14274,151.55,151.51,19.9292939]
[1745548814394,7.14273999,151.54,151.5,23.10231022]
[1745548815598,7.14273999,151.53,151.5,23.10231022]
[1745548816111,7.14273999,151.53,151.5,6.60066006]
[1745548816686,7.14273999,151.52,151.5,6.60066006]
[1745548817421,7.14273999,151.53,151.5,6.60066006]
[1745548817799,7.14273999,151.51,151.49,6.60109578]
[1745548818807,7.14273999,151.51,151.47,6.60196738]
[1745548820308,7.14273999,151.51,151.47,13.74470737]
[1745548821421,7.14273999,151.52,151.47,13.74470737]
[1745548821621,96.46000001,151.55,151.49,7.14273999]
[1745548821919,96.46000001,151.55,151.51,7.14273999]
[1745548822220,103.60274,151.55,151.5,7.14273999]
[1745548822924,7.14273999,151.53,151.49,6.60109578]
[1745548825311,7.14273999,151.54,151.49,30.24657522]
[1745548825622,103.60274,151.55,151.5,7.14273999]
[1745548826428,20.90274,151.55,151.5,7.14273999]
[1745548828238,13.76000001,151.55,151.51,6.6002244]
[1745548828413,20.90274,151.55,151.51,6.6002244]
[1745548830831,20.90274,151.55,151.51,6.6002244]
[1745548831137,7.14273999,151.52,151.49,6.60095804]
[1745548831349,7.14273999,151.5,151.49,6.60095804]
[1745548831651,7.14273999,151.5,151.47,6.60196738]
[1745548831813,7.14273999,151.49,151.47,6.60196738]
[1745548832531,7.14273999,151.49,151.45,6.60283922]
[1745548832933,0.14216157,151.52,151.45,6.60283922]
[1745548833133,7.14273999,151.51,151.46,27.07203389]
[1745548833943,7.14273999,151.51,151.47,7.14273999]
[1745548834253,7.14273999,151.51,151.46,27.07203389]
[1745548834941,7.14273999,151.51,151.47,6.60196738]
[1745548836715,7.14273999,151.52,151.47,13.74470737]
[1745548837142,7.14273999,151.51,151.47,6.60196738]
[1745548839446,7.14273999,151.52,151.47,30.24962583]
[1745548841259,82.7,151.54,151.49,7.14273999]
[1745548841433,7.14273999,151.54,151.49,7.14273999]
[1745548841623,39.76000001,151.55,151.47,43.03617974]
[1745548841624,7.14273999,151.53,151.48,7.14273999]
[1745548842244,39.76000001,151.55,151.48,7.14273999]
[1745548842545,7.14273999,151.51,151.47,23.10688584]
[1745548843731,7.14273999,151.49,151.45,6.60283922]
[1745548844042,7.14273999,151.5,151.45,13.74557921]
[1745548844425,7.14273999,151.5,151.46,7.14273999]
[1745548845151,7.14273999,151.51,151.47,7.14273999]
[1745548845440,7.14273999,151.52,151.47,7.14273999]
[1745548845835,7.14273999,151.52,151.48,13.74427154]
[1745548846024,89.84273999,151.53,151.48,30.24810042]
[1745548846223,7.14273999,151.54,151.49,7.14273999]
[1745548848145,7.14273999,151.54,151.5,6.60066006]
[1745548848455,20.90274,151.55,151.5,13.74340005]
[1745548849453,13.76000001,151.55,151.51,7.14273999]
[1745548850057,13.76000001,151.55,151.52,7.14273999]
[1745548850356,13.76000001,151.55,151.53,6.59935326]
[1745548850950,13.76000001,151.55,151.54,7.14273999]
[1745548850951,1e-08,151.55,151.54,7.14273999]
[1745548852031,1e-08,151.55,151.53,26.52864716]
[1745548852356,1e-08,151.55,151.54,13.74165776]
[1745548852737,1e-08,151.55,151.54,6.59891777]
[1745548853459,1e-08,151.55,151.53,6.59925878]
[1745548854563,1e-08,151.55,151.52,6.5997888]
[1745548855058,7.14274,151.55,151.52,6.5997888]
[1745548855434,11.14923963,151.55,151.52,6.5997888]
[1745548855634,1e-08,151.55,151.52,6.5997888]
[1745548858462,1e-08,151.55,151.54,11.14923962]
[1745548858669,1e-08,151.55,151.53,11.14923962]
[1745548860060,1e-08,151.55,151.54,6.59891777]
[1745548860242,1e-08,151.55,151.54,17.74815739]
[1745548870978,1e-08,151.55,151.54,6.59891777]
[1745548871577,1e-08,151.55,151.54,17.74815739]
[1745548872779,1e-08,151.55,151.54,6.59891777]
[1745548872966,11.14923963,151.55,151.54,6.59891777]
[1745548874475,11.14923963,151.55,151.51,34.25002503]
[1745548874652,1e-08,151.55,151.52,11.14923962]
[1745548875066,1e-08,151.55,151.54,11.14923962]
[1745548875352,1e-08,151.55,151.54,31.07853352]
[1745548877081,1e-08,151.55,151.54,37.67745129]
[1745548877267,1e-08,151.55,151.54,52.30691793]
[1745548877465,1e-08,151.57,151.55,18.64964886]
[1745548877674,1e-08,151.57,151.56,8.44825316]
[1745548878385,1e-08,151.57,151.56,18.48335195]
[1745548878587,0.063,151.59,151.56,18.48335195]
[1745548878771,0.063,151.59,151.58,7.1290574]
[1745548879281,0.063,151.59,151.58,17.73318699]
[1745548879980,0.063,151.59,151.58,6.5971764]
[1745548881396,0.063,151.59,151.58,11.13601059]
[1745548883865,0.063,151.59,151.58,17.73318699]
[1745548884786,0.063,151.6,151.58,17.73318699]
[1745548884987,0.063,151.6,151.59,11.13601059]
[1745548885894,0.063,151.6,151.59,17.73275179]
[1745548890691,0.063,151.6,151.59,6.5967412]
[1745548892300,10.69901059,151.61,151.59,6.5967412]
[1745548892467,10.69901059,151.61,151.58,6.5971764]
[1745548893093,11.19901059,151.62,151.58,6.5971764]
[1745548893596,11.13601059,151.61,151.58,6.5971764]
[1745548894001,11.13601059,151.6,151.57,6.59740578]
[1745548898293,11.13601059,151.61,151.57,6.59740578]
[1745548899295,7.13048822,151.61,151.57,6.59740578]
[1745548900896,7.13048822,151.58,151.57,6.59740578]
[1745548901108,0.14216157,151.56,151.5,23.10197311]
[1745548901280,7.13048822,151.53,151.5,23.10197311]
[1745548901488,7.13048822,151.53,151.5,16.50131305]
[1745548903270,11.15292564,151.53,151.49,6.66409578]
[1745548903594,11.15292564,151.51,151.49,6.66409578]
[1745548904386,11.15292564,151.51,151.5,0.063]
[1745548905601,12.85448721,151.51,151.5,0.063]
[1745548906000,12.71232564,151.51,151.5,0.063]
[1745548910308,12.85448721,151.51,151.5,0.063]
[1745548910713,95.55448721,151.51,151.5,0.063]
[1745548911379,114.20413607,151.51,151.5,0.063]
[1745548911585,18.79181043,151.5,151.49,0.063]
[1745548911799,43.66473607,151.5,151.49,0.063]
[1745548915387,26.0,151.47,151.43,0.03]
[1745548915581,11.15292564,151.44,151.43,0.03]
[1745548915911,11.29508721,151.44,151.43,0.03]
[1745548916095,11.15292564,151.44,151.43,0.03]
[1745548917598,11.29508721,151.44,151.43,0.03]
[1745548923113,67.09766171,151.44,151.43,0.03]
[1745548923299,0.14216157,151.43,151.42,0.03]
[1745548923502,0.14216157,151.41,151.4,0.03]
[1745548923724,31.48673607,151.41,151.4,0.03]
[1745548923928,37.64853607,151.41,151.4,0.03]
[1745548924629,37.64853607,151.41,151.39,0.03]
[1745548924913,51.03508721,151.4,151.39,0.03]
[1745548926797,18.79181043,151.39,151.38,0.03]
[1745548927526,25.94730626,151.39,151.38,0.03]
[1745548930522,25.94730626,151.39,151.36,0.03]
[1745548930707,51.94730626,151.38,151.36,0.03]
[1745548930905,0.14216157,151.37,151.36,0.03]
[1745548931109,35.91964072,151.37,151.36,0.03]
[1745548931509,89.9976574,151.37,151.36,0.03]
[1745548931941,115.9976574,151.37,151.36,0.03]
[1745548932138,108.7,151.37,151.36,0.03]
[1745548932506,96.44,151.4,151.36,0.03]
[1745548932829,39.74,151.4,151.36,0.03]
[1745548932999,13.74,151.4,151.37,7.15549583]
[1745548933926,20.89549583,151.4,151.36,7.18549583]
[1745548934904,13.74,151.4,151.37,6.60632886]
[1745548935124,7.15549583,151.38,151.36,0.03]
[1745548935429,11.17893056,151.37,151.36,0.03]
[1745548937921,37.32109213,151.37,151.36,0.03]
[1745548938441,37.17893056,151.37,151.36,0.03]
[1745548939837,11.17893056,151.37,151.36,0.03]
[1745548941339,108.84216157,151.39,151.36,0.03]
[1745548941545,11.17893056,151.37,151.36,0.03]
[1745548942849,108.7,151.39,151.36,0.03]
[1745548943026,119.87893056,151.39,151.36,6.63676532]
[1745548943552,37.17893056,151.39,151.36,6.63676532]
[1745548944347,11.17893056,151.39,151.36,6.63676532]
[1745548944550,13.74,151.4,151.36,6.63676532]
[1745548944726,11.17893056,151.39,151.36,6.63676532]
[1745548944920,11.17893056,151.39,151.36,0.03]
[1745548945948,13.74,151.4,151.36,0.03]
[1745548945949,11.17893056,151.38,151.36,0.03]
[1745548948653,11.17893056,151.37,151.36,0.03]
[1745548949020,11.32109213,151.37,151.36,0.03]
[1745548950549,37.17893056,151.38,151.36,0.03]
[1745548950931,26.0,151.38,151.36,0.03]
[1745548951126,11.17893056,151.38,151.36,0.03]
[1745548951425,11.17893056,151.37,151.36,0.03]
[1745548952350,11.17893056,151.38,151.36,0.03]
[1745548953844,11.17893056,151.37,151.36,0.03]
[1745548954246,93.87893056,151.39,151.36,0.03]
[1745548955269,11.17893056,151.39,151.36,0.03]
[1745548955655,24.91893056,151.4,151.36,0.03]
[1745548956159,11.17893056,151.39,151.36,0.03]
[1745548956359,24.91893056,151.4,151.36,0.03]
[1745548956568,13.74,151.4,151.36,11.20893056]
[1745548956975,24.91893056,151.4,151.36,0.03]
[1745548957163,11.17893056,151.39,151.36,0.03]
[1745548960154,24.91893056,151.4,151.36,0.03]
[1745548962691,11.17893056,151.39,151.36,0.03]
[1745548967280,7.15081926,151.39,151.36,0.03]
[1745548967487,13.74,151.4,151.36,0.03]
[1745548967488,20.89081926,151.4,151.36,0.03]
[1745548970498,20.89081926,151.4,151.36,6.63676532]
[1745548971162,13.74,151.4,151.36,13.78758458]
[1745548971363,13.74,151.4,151.37,7.15081926]
[1745548971605,13.74,151.4,151.36,6.63676532]
[1745548971807,13.74,151.4,151.36,13.78758458]
[1745548972003,13.74,151.4,151.36,6.63676532]
[1745548972221,20.89081926,151.4,151.36,6.63676532]
[1745548972419,7.15081926,151.39,151.36,6.63676532]
[1745548973502,7.15081926,151.37,151.36,0.03]
[1745548974215,7.15081926,151.39,151.36,0.03]
[1745548974432,7.15081926,151.38,151.36,0.03]
[1745548975338,7.15081926,151.37,151.36,0.03]
[1745548977330,7.29298083,151.37,151.36,0.03]
[1745548980211,35.89625787,151.37,151.36,0.03]
[1745548980527,44.79181043,151.36,151.35,0.03]
[1745548980731,80.54590673,151.36,151.35,0.03]
[1745548981833,163.24590673,151.36,151.34,0.03]
[1745548982032,103.73298083,151.35,151.34,0.03]
[1745548982235,18.64964886,151.34,151.33,0.03]
[1745548982418,25.80046812,151.34,151.33,0.03]
[1745548983921,55.23772741,151.34,151.33,0.03]
[1745548984128,26.0,151.32,151.29,0.03]
[1745548984314,7.15081926,151.3,151.29,0.03]
[1745548984516,20.89081926,151.3,151.29,0.03]
[1745548985926,21.03298083,151.3,151.29,0.03]
[1745548986145,103.73298083,151.3,151.29,0.03]
[1745548986322,122.38262969,151.3,151.29,0.03]
[1745548988215,122.38262969,151.3,151.26,0.03]
[1745548988216,26.14216157,151.27,151.26,0.03]
[1745548988416,26.14216157,151.27,151.23,0.03]
[1745548988417,0.14216157,151.26,151.23,0.03]
[1745548988729,25.94262969,151.24,151.23,0.03]
[1745548989432,51.94262969,151.24,151.23,0.03]
[1745548990131,33.29298083,151.24,151.23,0.03]
[1745548990314,26.14216157,151.24,151.23,0.03]
[1745548990514,33.29298083,151.24,151.23,0.03]
[1745548991321,37.34097454,151.24,151.23,0.03]
[1745548991533,55.9906234,151.24,151.23,0.03]
[1745548991744,37.34097454,151.24,151.23,0.03]
[1745548992624,37.19881297,151.24,151.23,0.03]
[1745548992817,11.19881297,151.24,151.23,0.03]
[1745548993021,24.91881297,151.25,151.23,0.03]
[1745548993223,11.19881297,151.24,151.23,0.03]
[1745548994239,13.72,151.25,151.23,0.03]
[1745548995726,13.72,151.25,151.23,11.22881297]
[1745548995925,13.74,151.29,151.24,11.19881297]
[1745548996127,13.74,151.29,151.26,11.19881297]
[1745548996328,13.74,151.29,151.27,6.6106961]
[1745548998341,13.74,151.29,151.26,11.19881297]
[1745548998747,13.74,151.29,151.27,11.19881297]
[1745548998923,13.74,151.29,151.26,11.19881297]
[1745549000146,13.74,151.29,151.25,11.19881297]
[1745549000738,24.93881297,151.29,151.25,11.19881297]
[1745549001049,24.93881297,151.29,151.24,16.529655]